Cogmind - Beta 15 @@@ ROGUE MODE // 2025.09.14 @ 10:15:32 Player: beans Result: Destroyed by G-34 Mercenary with Small Laser Performance ------------- Evolutions (0) 0 Regions Visited (2) 400 Robots Destroyed (8) 40 Value Destroyed (124) 124 Prototype IDs (0) 0 Alien Tech Used (0) 0 Bonus (0) 0 TOTAL SCORE: 564 Bonus ------- None Cogmind --------- Core Integrity 0/250 Matter 300/300 Energy 100/100 System Corruption 0% Temperature Cool (6) Movement Core (50) Location -10/Mines Parts ------- > --- POWER (1) -------- (None) > --- PROPULSION (2) --- (None) > --- UTILITY (2) ------ (None) > --- WEAPON (2) ------- (None) > --- INVENTORY (5) ---- EM Shotgun Light EM Pulse Cannon Peak State ------------ > --- POWER ------------ Light Ion Engine > --- PROPULSION ------- Light Treads > --- UTILITY ---------- (None) > --- WEAPON ----------- EM Shotgun EM Shotgun > --- INVENTORY -------- Light EM Pulse Cannon [Rating: 6] Favorites ----------- Power Light Ion Engine Engine Light Ion Engine Propulsion Light Treads Treads Light Treads Utility None Weapon Small Laser Energy Gun Small Laser Energy Cannon Light EM Pulse Cannon Build | -11 -10 -10 ------- Run | Yrd Mat Min Slots Evolved . | . . . Power . | . . . Propulsion . | . . . Utility . | . . . Weapon . | . . . Parts Attached 10 | 5 5 . Power 2 | 1 1 . Engine 2 | 1 1 . Core . | . . . Reactor . | . . . Propulsion 3 | 2 1 . Treads 3 | 2 1 . Leg . | . . . Wheel . | . . . Hover . | . . . Flight . | . . . Utility . | . . . Device . | . . . Storage . | . . . Processor . | . . . Hackware . | . . . Protection . | . . . Artifact . | . . . Weapon 5 | 2 3 . Energy Gun 4 | 2 2 . Energy Cannon 1 | . 1 . Ballistic Gun . | . . . Ballistic Cannon . | . . . Launcher . | . . . Special Weapon . | . . . Impact Weapon . | . . . Slashing Weapon . | . . . Piercing Weapon . | . . . Special Melee Weapon . | . . . Unidentified Prototypes . | . . . Parts Lost 8 | . 4 4 Power 2 | . 1 1 Propulsion 2 | . 1 1 Utility . | . . . Weapon 4 | . 2 2 Highest Loss Streak 3 | . 3 2 To Critical Strikes 1 | . 1 . Average Backups . | . . 2 Power . | . . . Propulsion . | . . . Utility . | . . . Weapon . | . . 2 Tool/Special . | . . . Unused Backups 1 | . . 1 Power . | . . . Propulsion . | . . . Utility . | . . . Weapon 1 | . . 1 Tool/Special . | . . . Average Slot Usage (%) 53 | . 60 21 Engine 10 | . 12 2 Treads 19 | . 23 1 Energy Gun 19 | . 21 9 Energy Cannon 3 | . 2 7 Peak Build Rating 6 | 5 6 6 Average Rating 4 | 3 4 2 On Entrance 3 | . 5 6 Naked Turns 31 | . . 31 Heaviest Build 10 | 6 10 7 Greatest Support 40 | 40 40 3 Greatest Overweight (x) 2 | . . 2 Average Overweight (x) . | . . 2 Largest Inventory Capacity 5 | 5 5 5 Average Capacity 5 | 5 5 5 Most Carried 2 | 2 2 2 Average Carried . | . . 2 Final Capacity 5 | 5 5 5 Final Carried 2 | . 2 2 Class Distribution -------------------- 100% | Mutant Dominant Class ---------------- Mutant | -10/Materials Mutant | -10/Mines Resources | -11 -10 -10 ----------- Run | Yrd Mat Min Matter Collected 285 | 250 35 . Remotely . | . . . Salvage Created 234 | 23 211 . Parts 17 | 2 15 . Haulers Intercepted . | . . . Recyclers Shooed . | . . . Parts Field Recycled . | . . . Retrieved Matter . | . . . Parts Self-Destructed . | . . . Prevented . | . . . Kills | -11 -10 -10 ------- Run | Yrd Mat Min Combat Hostiles Destroyed 4 | . 4 . Melee 1 | . 1 . Guns 3 | . 3 . Classes Destroyed 5 | 1 4 . Worker 2 | 1 1 . Builder 1 | . 1 . Recycler 1 | . 1 . Swarmer 2 | . 2 . Grunt 2 | . 2 . Best Kill Streak 2 | 1 2 . Combat Bots Only 2 | . 2 . Max Kills in Single Turn 1 | 1 1 . Gunslinging . | . . . Exploded . | . . . Melee 1 | . 1 . Uniques/NPCs Destroyed . | . . . Combat | -11 -10 -10 -------- Run | Yrd Mat Min Hostile Shots Fired 145 | . 103 42 Missed 50 | . 40 10 Hits 95 | . 63 32 Projectile 95 | . 63 32 Critical Strikes 3 | . 2 1 Damage Taken 1004 | . 625 379 Core 257 | . 67 190 Absorbed by Shields . | . . . Core Remaining (%) 100 | 100 . . Volleys Fired 32 | 6 23 3 Largest 2 | 2 2 2 Hottest 101 | 90 101 101 Shots Fired 57 | 12 39 6 Gun 49 | 12 34 3 Cannon 8 | . 5 3 Launcher . | . . . Special . | . . . Kinetic . | . . . Thermal 35 | 12 23 . Explosive . | . . . Electromagnetic 22 | . 16 6 Robot Hit Streak 10 | 3 10 2 Robot Miss Streak 3 | 3 3 2 Penetration Max . | . . . Secondary Targets 1 | . 1 . Max Gunslinging Chain 1 | . 1 . Shots Hit Robots 31 | 6 21 4 Core Hits 16 | 2 13 1 Critical Kills . | . . . Critical Parts Destroyed . | . . . Critical Strikes 1 | . 1 . Burn 1 | . 1 . Melee Attacks . | . . . Impact . | . . . Slashing . | . . . Piercing . | . . . Sneak Attacks . | . . . Combat Hostiles . | . . . Follow-up Attacks . | . . . Damage Inflicted 415 | 62 294 59 Guns 344 | 62 246 36 Cannons 48 | . 25 23 Explosions . | . . . Melee . | . . . Ramming 23 | . 23 . Kinetic . | . . . Thermal 236 | 62 174 . Explosive . | . . . Electromagnetic 156 | . 97 59 Impact . | . . . Slashing . | . . . Piercing . | . . . Highest Corruption . | . . . Average Corruption . | . . . Corruption Purged . | . . . Corruption Blocked . | . . . Overload Shots . | . . . Overflow Damage . | . . . Projectiles . | . . . Explosions . | . . . Melee . | . . . Knockbacks . | . . . Impact . | . . . Kinetic . | . . . Secondary . | . . . Self-Inflicted Damage . | . . . Shots . | . . . Rammed 24 | . 24 . Targets Rammed 24 | . 24 . Kicked . | . . . Crushed . | . . . Highest Temperature 428 | 75 428 180 Average Temperature 125 | 35 152 94 Received Heat Transfer 441 | . 213 228 Effects 7 | . 7 . Shutdowns 2 | . 2 . Energy Bleed 2 | . 2 . Short Circuit 2 | . 2 . Damage (minor) 1 | . 1 . Siege Activations . | . . . Martial Activations . | . . . Shielding Activations . | . . . Robots Disrupted . | . . . Combat Hostiles . | . . . Robots Corrupted . | . . . Combat Hostiles . | . . . Parts Fried . | . . . Impact Corruptions . | . . . Robots Melted . | . . . Combat Hostiles . | . . . Parts Melted 1 | . 1 . Heat Transferred 671 | 162 509 . Parts Sabotaged . | . . . Parts Stolen . | . . . Parts Stripped . | . . . Power Chain Reactions . | . . . Alert | -11 -10 -10 ------- Run | Yrd Mat Min Maximum Alert Level . | . . . Low Security (%) 100 | 100 100 100 Level 1 . | . . . Level 2 . | . . . Level 3 . | . . . Level 4 . | . . . Level 5 . | . . . High Security . | . . . Max Security . | . . . Peak Influence 35 | 5 35 15 Initial 3 | . 3 3 Average 6 | . 9 2 Influence Increases 140 | 5 120 15 Destroy 0b10 Robot/C 80 | . 80 . Destroy 0b10 Robot/NC 20 | 5 15 . Destroy Leader 10 | . 10 . Disable Machine 15 | . 15 . Lose Combat Pursuer 15 | . . 15 Influence Decreases 140 | . 115 25 Entered New Map 9 | . 2 7 Time Decay 113 | . 103 10 Lost Part 18 | . 10 8 Squads Dispatched . | . . . Investigation . | . . . Extermination . | . . . Reinforcement . | . . . Assault . | . . . Garrison . | . . . Intercept . | . . . Searches Triggered . | . . . Construction Impeded . | . . . Haulers Reinforced . | . . . Active Scanning Responses . | . . . Cargo Convoy Interrupts . | . . . Stealth | -11 -10 -10 --------- Run | Yrd Mat Min Distress Signals . | . . . Communications Jammed . | . . . Distress Signals . | . . . Times Spotted 7 | . 5 2 Peak Tracking Total 3 | . 3 2 Tactical Retreats 1 | . . 1 Traps | -11 -10 -10 ------- Run | Yrd Mat Min Traps Triggered . | . . . Indirectly . | . . . Trap Hack Attempts . | . . . Triggered . | . . . Disarmed . | . . . Reprogrammed . | . . . Reused . | . . . Traps Extracted . | . . . Installed . | . . . Triggered . | . . . Machines | -11 -10 -10 ---------- Run | Yrd Mat Min Machines Disabled 1 | . 1 . Max in Single Turn 1 | . 1 . Machines Repaired . | . . . Machines Dismantled . | . . . Machines Sabotaged . | . . . Overloaded Fab Kills . | . . . Hacking | -11 -10 -10 --------- Run | Yrd Mat Min Machines Accessed 1 | . 1 . Terminals 1 | . 1 . Fabricators . | . . . Repair Stations . | . . . Recycling Units . | . . . Scanalyzers . | . . . Garrison Access . | . . . Total Hacks 2 | . 2 . Successful . | . . . Failed 2 | . 2 . Catastrophic 1 | . 1 . Database Lockouts . | . . . Manual 2 | . 2 . Terminals 2 | . 2 . Fabricators . | . . . Repair Stations . | . . . Recycling Units . | . . . Scanalyzers . | . . . Garrison Access . | . . . Terminal Hacks . | . . . Fabricator Hacks . | . . . Repair Station Hacks . | . . . Recycling Unit Hacks . | . . . Scanalyzer . | . . . Garrison Access Hacks . | . . . Unauthorized Hacks . | . . . Terminals . | . . . Fabricators . | . . . Repair Stations . | . . . Recycling Units . | . . . Scanalyzers . | . . . Garrison Access . | . . . Data Cores Recovered . | . . . Used . | . . . Hacking Detections 1 | . 1 . Full Trace Events . | . . . Feedback Events . | . . . Feedback Blocked . | . . . Robot Schematics Acquired . | . . . Robots Built . | . . . Authchips . | . . . Time . | . . . Total Robot Build Rating . | . . . Part Schematics Acquired . | . . . Parts Built . | . . . Authchips . | . . . Time . | . . . Total Part Build Rating . | . . . Parts Repaired . | . . . Time . | . . . Parts Recycled . | . . . Recycled Matter . | . . . Retrieved Matter . | . . . Retrieved Components . | . . . Parts Scanalyzed . | . . . Part Schematics Acquired . | . . . Parts Damaged . | . . . Bothacking | -11 -10 -10 ------------ Run | Yrd Mat Min Used RIF Installer . | . . . Robots Hacked . | . . . Non-combat . | . . . Combat . | . . . Robot Hacks Applied . | . . . Relay Couplers Released . | . . . Fabnet Peak Effective % . | . . . Robots Rewired . | . . . Allies Hacked . | . . . Hacks Repelled . | . . . Allies | -11 -10 -10 -------- Run | Yrd Mat Min Total Allies . | . . . Largest Group . | . . . Highest-Rated Group . | . . . Highest-Rated Ally . | . . . Total Orders . | . . . Ally Attacks . | . . . Total Damage . | . . . Kills . | . . . Allies Corrupted . | . . . Allies Melted . | . . . Intel | -11 -10 -10 ------- Run | Yrd Mat Min Active Infowar (turns) . | . . . Robot Analysis Total . | . . . Derelict Logs Recovered . | . . . Drone Launches . | . . . Drone Recoveries . | . . . Exploration | -11 -10 -10 ------------- Run | Yrd Mat Min Turns Passed 606 | 116 397 93 Spaces Moved 246 | 62 165 19 Core 28 | 9 . 19 Treads 218 | 53 165 . Legs . | . . . Wheels . | . . . Hover . | . . . Flight . | . . . Fastest Speed 50 | 50 160 150 Average Speed 155 | 144 160 150 Slowest Speed 160 | 160 160 150 Overloaded Moves . | . . . Propulsion Burnouts . | . . . Robots Hopped . | . . . Potential Cave-ins . | . . . Cave-ins Triggered . | . . . Exploration Rate (%) 18 | 5 42 9 Regions Visited 2 Branch Regions 1 Pre-discovered Areas . | . . . Known Exits Taken . | . . . Unknown Exits Taken 2 | 1 1 . Scrap Searched . | . . . Spaces Dug . | . . . Terrain Destroyed . | . . . Melee . | . . . Projectile . | . . . AOE . | . . . Terrain Rammed . | . . . Walls Destroyed . | . . . Machines Disabled . | . . . Actions | -11 -10 -10 --------- Run | Yrd Mat Min Total 399 | 77 245 77 Wait 77 | . 22 55 Move 244 | 61 164 19 Hop . | . . . Pick Up 11 | 5 6 . Fast Attach . | . . . Attach 9 | 5 4 . Detach . | . . . Swap 1 | . 1 . Drop 1 | . 1 . Fire 32 | 6 23 3 Melee . | . . . Ram . | . . . Kick . | . . . Crush 24 | . 24 . Escape Stasis . | . . . Rewire . | . . . Trap . | . . . Miscellaneous . | . . . Route ------- -11/Scrapyard -10/Materials -10/Mines History --------- Turn | Location | Event 4 | -11/Scrapyard | Discovered new exit (range 16) 117 | -11/Scrapyard | Entered Materials 338 | -10/Materials | Build established: Mutant 387 | -10/Materials | Lost 3 parts (1p2w) 503 | -10/Materials | Discovered new exit (range 8) 514 | -10/Materials | Entered Mines 567 | -10/Mines | Core integrity fell below 50% 593 | -10/Mines | Core integrity fell below 20% 607 | -10/Mines | Destroyed by G-34 Mercenary with Small Laser Last Messages --------------- K-01 Serf collects debris. U-05 Engineer destroyed. K-01 Serf collects debris. EXIT=FOUND LOCATION=UNKNOWN GOAL=ESCAPE Lgt. Treads destroyed. Critical hit (Burn: +37). Lgt. Ion Engine destroyed. G-47 Trooper misfires. T-07 Excavator is excavating. Lgt. EM Pulse Cannon destroyed. T-07 Excavator is excavating. EM Shotgun destroyed. T-07 Excavator is excavating. U-05 Engineer lays Concrete. T-07 Excavator is excavating. U-05 Engineer lays Concrete. U-05 Engineer builds a Wall. T-07 Excavator is excavating. Map ----- +----------------------------------------------------+ | ?????????????????????????????????????????????????? | | ?????????????????????????????????????????????????? | | ?????????????????????????????????????????????????? | | ?????????????????????????????????????????????????? | | ?????????????????????????????????????????????????? | | ?????????????????????????????????????????????????? | | ?????????????????????????????????????????????????? | | ?????????????????????????????????????????????????? | | ?????????????????????????????????????????????????? | | ?????????????????????????????????????????????????? | | ?????????????????????????????????????????????????? | | ?????????????????????????????????????????????????? | | ?????????????????????????????######??????????????? | | ????????????????????????????? ####???????????? | | ?????????????????????????????? ????????????? | | ??????????????????????????????# #?????????????? | | ?????????????????????????????## #?????????????? | | ????????????????????????###### ##?????????????? | | ????????????????????????# #?????????????? | | ????????????????????????# ##### #?????????????? | | ????????????????????????# #???### #?????????????? | | ????????????????????????# #?????# ####??????????? | | ????????????????????????# #????## ##?????????? | | ????????????????????????#g##???# ##????????? | | ???????????????????????## u##??# #????????? | | ???????????????????????# @ u#??## #????????? | | ?????????????????????# #???## #????????? | | ?????????????????????# t##????## #????????? | | ?????????????????????#### #??????# ???????? | | ????????????????????????####??????## ??????? | | ???????????????????????????????????## ?????? | | ?????????????????????????????????????# ##????? | | ??????????????????????????????????????# #?????? | | ???????????????????????????????????????# ##?????? | | ????????????????????????????????????????###??????? | | ?????????????????????????????????????????????????? | | ?????????????????????????????????????????????????? | | | | | | | | | | | | | | | | | | | | | | | | | | | +----------------------------------------------------+ Best States ------------- Heat Dissipation 25 Energy Generation 10 Energy Capacity 125 Matter Stores 300 Matter Capacity 300 Sight Range 16 Terrain Scan Density 10 Evasion (%) 40 Recoil Reduction 2 Item Schematics ----------------- None Robot Schematics ------------------ None Fabricated ------------ Nothing Repaired ---------- Nothing Alien Tech Used ----------------- None Achievements -------------- None Challenges ------------ None Game ------ Seed DroneHeatShovel Manual? 0 Play Time 00:03:32 Cumulative 138.1 hours Start 2025.09.14 @ 10:12:19 End 2025.09.14 @ 10:15:32 Sessions 1 Manual Loads 0 Difficulty Rogue Special Mode None Game No. 468 Rogue 468 Adventurer 0 Explorer 0 Win Type - Total 0 Types 0/0/0/0/0/0/0/0/0/0 Lore% 51 Gallery% 49 Achievement% 36 Wizard Run 0 Options --------- Layout 2 ASCII 0 Keyboard 0 Movement Mouse Keybinds 0 Fullscreen 2 Font 24/Smallcaps Map View 50x44 Zoom Use 0% Tactical HUD 0 Map Filters NONE Filters NONE Steam 1 RUN: 9062e42e-0578-485b-8bcb-cfdf25ff43c0